[Event "Paracin Open 2022"]
[Site "Paracin"]
[Date "2022.07.14"]
[Round "7.14"]
[White "Sapenov, Daniyal"]
[Black "Song, Raymond"]
[Result "1/2-1/2"]
[ECO "D37"]
[WhiteElo "2362"]
[BlackElo "2499"]
[Annotator "ChessBase"]
[PlyCount "80"]
[EventDate "2022.07.08"]
[EventCountry "SRB"]
[SourceTitle "playchess.com"]
[Source "ChessBase"]
[SourceQuality "1"]
[TimeControl "5400+30"]

1. d4 {[%emt 0:00:05]} Nf6 {[%emt 0:00:05]} 2. c4 {[%emt 0:00:05]} e6 {[%emt 0:00:07]} 3. Nf3 {[%emt 0:00:03]} a6 {[%emt 0:00:06]} 4. Nc3 {[%emt 0:01:05]} d5 {[%emt 0:00:05]} 5. cxd5 {[%emt 0:00:33]} exd5 {[%emt 0:00:05]} 6. Bf4 {[%emt 0:00:09]} Bd6 {[%emt 0:00:28]} 7. Be5 {[%emt 0:00:08]} c6 {[%emt 0:02:28]} 8. e3 {[%emt 0:01:11]} O-O {[%emt 0:00:26]} 9. Bd3 {[%emt 0:01:10]} Bg4 {[%emt 0:05:44]} 10. Qc2 {[%emt 0:04:24]} Re8 {[%emt 0:01:40]} 11. Bxd6 {[%emt 0:02:09]} Qxd6 {[%emt 0:00:05]} 12. Ne5 {[%emt 0:06:39]} Bh5 {[%emt 0:03:12]} 13. Na4 {[%emt 0:13:03]} Qb4+ {[%emt 0:07:23]} 14. Kf1 {[%emt 0:00:17]} Bg6 {[%emt 0:00:22]} 15. Bxg6 {[%emt 0:00:57]} hxg6 {[%emt 0:00:03]} 16. Nc5 {[%emt 0:00:09]} Re7 {[%emt 0:03:16]} 17. h4 {[%emt 0:01:47]} Nbd7 {[%emt 0:02:06]} 18. Ncxd7 {[%emt 0:07:01]} Nxd7 {[%emt 0:00:03]} 19. Nxd7 {[%emt 0:00:54]} Rxd7 {[%emt 0:00:02]} 20. h5 {[%emt 0:00:13]} gxh5 {[%emt 0:01:22]} 21. Rxh5 {[%emt 0:00:26]} g6 {[%emt 0:00:05]} 22. Rh3 {[%emt 0:01:09]} Kg7 {[%emt 0:01:28]} 23. Kg1 {[%emt 0:03:45]} Rdd8 {[%emt 0:00:29]} 24. g3 {[%emt 0:01:48]} Rh8 {[%emt 0:00:46]} 25. Rxh8 {[%emt 0:00:25]} Rxh8 {[%emt 0:00:02]} 26. Kg2 {[%emt 0:00:10]} Qe7 {[%emt 0:02:57]} 27. Rh1 {[%emt 0:23:23]} Rxh1 {[%emt 0:00:08]} 28. Kxh1 {[%emt 0:00:05]} f5 {[%emt 0:03:03]} 29. Kg1 {[%emt 0:02:16]} Kf6 {[%emt 0:00:23]} 30. Qb3 {[%emt 0:01:32]} g5 {[%emt 0:01:10]} 31. Kf1 {[%emt 0:00:53]} Kg6 {[%emt 0:01:45]} 32. Ke2 {[%emt 0:00:40]} f4 {[%emt 0:03:39]} 33. gxf4 {[%emt 0:00:23]} gxf4 {[%emt 0:00:06]} 34. Qd1 {[%emt 0:04:54]} Qe4 {[%emt 0:01:40]} 35. Qg1+ {[%emt 0:02:26]} Kf5 {[%emt 0:00:48]} 36. Kd2 {[%emt 0:00:11]} Qf3 {[%emt 0:01:30]} 37. Qh2 {[%emt 0:00:17]} Kg4 {[%emt 0:01:57]} 38. Qg1+ {[%emt 0:01:29]} Kf5 {[%emt 0:00:57]} 39. Qh2 {[%emt 0:00:07]} Kg4 {[%emt 0:00:04]} 40. Qg1+ {[%emt 0:00:05]} Kf5 {[%emt 0:02:24]} 1/2-1/2

[Event "Paracin Open 2022"]
[Site "Paracin"]
[Date "2022.07.14"]
[Round "7.15"]
[White "Aditya Mittal"]
[Black "Arpita, Mukherjee"]
[Result "1-0"]
[ECO "E71"]
[WhiteElo "2480"]
[BlackElo "2281"]
[Annotator "ChessBase"]
[PlyCount "73"]
[EventDate "2022.07.08"]
[EventCountry "SRB"]
[SourceTitle "playchess.com"]
[Source "ChessBase"]
[SourceQuality "1"]
[TimeControl "5400+30"]

1. d4 {[%emt 0:00:04]} Nf6 {[%emt 0:01:27]} 2. c4 {[%emt 0:00:05]} g6 {[%emt 0:00:07]} 3. Nc3 {[%emt 0:00:02]} Bg7 {[%emt 0:00:08]} 4. e4 {[%emt 0:00:04]} d6 {[%emt 0:00:07]} 5. h3 {[%emt 0:00:03]} O-O {[%emt 0:00:16]} 6. Be3 {[%emt 0:00:09]} e5 {[%emt 0:00:42]} 7. d5 {[%emt 0:00:03]} a5 {[%emt 0:01:01]} 8. g4 {[%emt 0:00:04]} Na6 {[%emt 0:00:07]} 9. Nge2 {[%emt 0:00:04]} Nc5 {[%emt 0:08:37]} 10. Ng3 {[%emt 0:00:09]} Nfd7 {[%emt 0:08:06]} 11. h4 {[%emt 0:00:06]} Qe7 {[%emt 0:01:37]} 12. h5 {[%emt 0:02:31]} c6 {[%emt 0:02:33]} 13. Qd2 {[%emt 0:04:38]} Nf6 {[%emt 0:05:40]} 14. f3 {[%emt 0:01:14]} cxd5 {[%emt 0:01:12]} 15. cxd5 {[%emt 0:01:34]} b5 {[%emt 0:08:36]} 16. Qh2 {[%emt 0:13:41]} Bh8 {[%emt 0:31:19]} 17. Nxb5 {[%emt 0:02:55]} Na6 {[%emt 0:07:09]} 18. Qh4 {[%emt 0:07:22]} Bd7 {[%emt 0:02:30]} 19. Nf5 {[%emt 0:03:30]} Bxf5 {[%emt 0:01:33]} 20. gxf5 {[%emt 0:00:14]} Nb4 {[%emt 0:00:16]} 21. Na3 {[%emt 0:02:38]} Rac8 {[%emt 0:07:05]} 22. hxg6 {[%emt 0:02:07]} fxg6 {[%emt 0:00:23]} 23. fxg6 {[%emt 0:00:09]} h5 {[%emt 0:00:12]} 24. Rd1 {[%emt 0:08:34]} Nc2+ {[%emt 0:06:30]} 25. Nxc2 {[%emt 0:00:36]} Rxc2 {[%emt 0:00:03]} 26. Bh3 {[%emt 0:01:57]} Rb8 {[%emt 0:03:51]} 27. b3 {[%emt 0:04:08]} Bg7 {[%emt 0:00:45]} 28. Be6+ {[%emt 0:04:09]} Kf8 {[%emt 0:00:06]} 29. Rh2 {[%emt 0:00:34]} Rc3 {[%emt 0:02:13]} 30. Qf2 {[%emt 0:00:18]} a4 {[%emt 0:00:23]} 31. Qd2 {[%emt 0:02:29]} Qc7 {[%emt 0:00:36]} 32. Rc1 {[%emt 0:00:38]} Rxc1+ {[%emt 0:00:34]} 33. Qxc1 {[%emt 0:00:01]} Qxc1+ {[%emt 0:00:43]} 34. Bxc1 {[%emt 0:00:02]} axb3 {[%emt 0:00:09]} 35. Rb2 {[%emt 0:00:44]} Ra8 {[%emt 0:00:45]} 36. Rxb3 {[%emt 0:00:35]} Ne8 {[%emt 0:00:35]} 37. Rb7 {[%emt 0:00:15]} 1-0

[Event "Paracin Open 2022"]
[Site "Paracin"]
[Date "2022.07.14"]
[Round "7.16"]
[White "Taspinar, Yanki"]
[Black "Neelash Saha"]
[Result "1-0"]
[ECO "B99"]
[WhiteElo "2311"]
[BlackElo "2446"]
[Annotator "ChessBase"]
[PlyCount "115"]
[EventDate "2022.07.08"]
[EventCountry "SRB"]
[SourceTitle "playchess.com"]
[Source "ChessBase"]
[SourceQuality "1"]
[TimeControl "5400+30"]

1. e4 {[%emt 0:00:46]} c5 {[%emt 0:00:04]} 2. Nf3 {[%emt 0:00:04]} d6 {[%emt 0:00:03]} 3. d4 {[%emt 0:00:05]} cxd4 {[%emt 0:00:03]} 4. Nxd4 {[%emt 0:00:05]} Nf6 {[%emt 0:00:02]} 5. Nc3 {[%emt 0:00:07]} a6 {[%emt 0:00:03]} 6. Bg5 {[%emt 0:00:42]} e6 {[%emt 0:00:22]} 7. f4 {[%emt 0:00:06]} Be7 {[%emt 0:00:04]} 8. Qf3 {[%emt 0:00:05]} Qc7 {[%emt 0:00:06]} 9. O-O-O {[%emt 0:00:07]} Nbd7 {[%emt 0:00:03]} 10. g4 {[%emt 0:00:32]} h6 {[%emt 0:06:39]} 11. Bxf6 {[%emt 0:00:18]} Bxf6 {[%emt 0:00:05]} 12. h4 {[%emt 0:00:06]} Nb6 {[%emt 0:00:03]} 13. g5 {[%emt 0:00:11]} Bxd4 {[%emt 0:00:04]} 14. Rxd4 {[%emt 0:00:04]} Qc5 {[%emt 0:00:03]} 15. Rd2 {[%emt 0:00:36]} Bd7 {[%emt 0:00:30]} 16. Be2 {[%emt 0:00:09]} Na4 {[%emt 0:00:05]} 17. Rd3 {[%emt 0:01:58]} Rc8 {[%emt 0:03:49]} 18. Bd1 {[%emt 0:01:05]} Nb6 {[%emt 0:02:30]} 19. Kb1 {[%emt 0:31:15]} Nc4 {[%emt 0:00:59]} 20. gxh6 {[%emt 0:10:10]} Rxh6 {[%emt 0:01:20]} 21. h5 {[%emt 0:05:22]} b5 {[%emt 0:03:15]} 22. Ka1 {[%emt 0:12:14]} Bc6 {[%emt 0:26:21]} 23. Qg2 {[%emt 0:09:52]} Kf8 {[%emt 0:03:32]} 24. Rg1 {[%emt 0:15:54]} Rh7 {[%emt 0:00:13]} 25. Re1 {[%emt 0:01:57]} a5 {[%emt 0:09:01]} 26. b3 {[%emt 0:05:38]} Qb4 {[%emt 0:09:34]} 27. Bf3 {[%emt 0:00:53]} Na3 {[%emt 0:01:14]} 28. Qd2 {[%emt 0:00:10]} Be8 {[%emt 0:00:34]} 29. Bd1 {[%emt 0:02:08]} Qc5 {[%emt 0:01:06]} 30. Kb2 {[%emt 0:01:26]} Qb4 {[%emt 0:16:07]} 31. Ka1 {[%emt 0:00:10]} Rc6 {[%emt 0:00:54]} 32. e5 {[%emt 0:01:01]} d5 {[%emt 0:05:52]} 33. Ne2 {[%emt 0:00:54]} Qxd2 {[%emt 0:02:55]} 34. Rxd2 {[%emt 0:00:01]} b4 {[%emt 0:00:31]} 35. Nd4 {[%emt 0:00:55]} Rc5 {[%emt 0:00:15]} 36. Kb2 {[%emt 0:00:44]} Ke7 {[%emt 0:00:56]} 37. Re3 {[%emt 0:00:28]} Nb5 {[%emt 0:01:48]} 38. Nxb5 {[%emt 0:00:04]} Bxb5 {[%emt 0:00:04]} 39. Rg3 {[%emt 0:01:02]} f6 {[%emt 0:01:06]} 40. Rdg2 {[%emt 0:00:28]} Kf7 {[%emt 0:00:40]} 41. h6 {[%emt 0:00:14]} Rxh6 {[%emt 0:05:19]} 42. Rxg7+ {[%emt 0:00:04]} Ke8 {[%emt 0:00:07]} 43. Rb7 {[%emt 0:01:00]} Kf8 {[%emt 0:00:24]} 44. Rb8+ {[%emt 0:00:39]} Be8 {[%emt 0:00:44]} 45. exf6 {[%emt 0:00:15]} Kf7 {[%emt 0:00:04]} 46. Rg5 {[%emt 0:00:47]} Bb5 {[%emt 0:00:36]} 47. Bh5+ {[%emt 0:00:25]} Kxf6 {[%emt 0:00:08]} 48. Rb7 {[%emt 0:00:24]} Rxh5 {[%emt 0:00:37]} 49. Rxh5 {[%emt 0:01:20]} Be8 {[%emt 0:00:03]} 50. Rh8 {[%emt 0:00:00]} Bb5 {[%emt 0:00:32]} 51. Rh6+ {[%emt 0:00:03]} Kf5 {[%emt 0:00:04]} 52. Rf7+ {[%emt 0:00:03]} Kg4 {[%emt 0:00:14]} 53. Rxe6 {[%emt 0:00:12]} a4 {[%emt 0:00:05]} 54. bxa4 {[%emt 0:00:29]} Bxa4 {[%emt 0:00:04]} 55. Re2 {[%emt 0:00:08]} Kf3 {[%emt 0:00:20]} 56. Rh2 {[%emt 0:00:10]} Be8 {[%emt 0:01:32]} 57. Rb7 {[%emt 0:00:32]} Bb5 {[%emt 0:02:00]} 58. f5 {[%emt 0:00:14]} 1-0

[Event "Paracin Open 2022"]
[Site "Paracin"]
[Date "2022.07.14"]
[Round "7.17"]
[White "Panda Sambit"]
[Black "Gan-Erdene, Sugar"]
[Result "0-1"]
[ECO "E94"]
[WhiteElo "2123"]
[BlackElo "2428"]
[Annotator "ChessBase"]
[PlyCount "106"]
[EventDate "2022.07.08"]
[EventCountry "SRB"]
[SourceTitle "playchess.com"]
[Source "ChessBase"]
[SourceQuality "1"]
[TimeControl "5400+30"]

1. d4 {[%emt 0:00:11]} Nf6 {[%emt 0:00:06]} 2. c4 {[%emt 0:00:22]} g6 {[%emt 0:00:08]} 3. Nc3 {[%emt 0:00:10]} Bg7 {[%emt 0:00:19]} 4. e4 {[%emt 0:00:09]} d6 {[%emt 0:00:14]} 5. Be2 {[%emt 0:00:31]} O-O {[%emt 0:00:21]} 6. Nf3 {[%emt 0:00:19]} Na6 {[%emt 0:02:13]} 7. O-O {[%emt 0:00:34]} e5 {[%emt 0:00:26]} 8. Be3 {[%emt 0:00:13]} c6 {[%emt 0:00:25]} 9. d5 {[%emt 0:00:45]} Ng4 {[%emt 0:00:42]} 10. Bg5 {[%emt 0:00:09]} f6 {[%emt 0:00:16]} 11. Bd2 {[%emt 0:00:01]} Nh6 {[%emt 0:25:56]} 12. a3 {[%emt 0:37:59]} c5 {[%emt 0:13:02]} 13. Qc1 {[%emt 0:21:46]} Nf7 {[%emt 0:00:17]} 14. g3 {[%emt 0:00:32]} Bh3 {[%emt 0:08:03]} 15. Re1 {[%emt 0:00:13]} Qd7 {[%emt 0:01:44]} 16. Kh1 {[%emt 0:02:19]} Qe7 {[%emt 0:05:20]} 17. Ng1 {[%emt 0:08:15]} Bd7 {[%emt 0:00:14]} 18. Qc2 {[%emt 0:02:07]} f5 {[%emt 0:02:54]} 19. exf5 {[%emt 0:00:27]} gxf5 {[%emt 0:00:19]} 20. f4 {[%emt 0:01:09]} e4 {[%emt 0:06:47]} 21. Be3 {[%emt 0:02:07]} Nc7 {[%emt 0:01:50]} 22. Rad1 {[%emt 0:03:24]} b6 {[%emt 0:00:41]} 23. Nh3 {[%emt 0:01:02]} Kh8 {[%emt 0:02:22]} 24. Nf2 {[%emt 0:00:09]} Nh6 {[%emt 0:02:14]} 25. h3 {[%emt 0:01:31]} Rab8 {[%emt 0:06:35]} 26. b4 {[%emt 0:06:26]} Qf6 {[%emt 0:00:51]} 27. Rc1 {[%emt 0:01:19]} a6 {[%emt 0:03:34]} 28. Qd2 {[%emt 0:01:25]} Qe7 {[%emt 0:02:46]} 29. Rg1 {[%emt 0:00:30]} Rg8 {[%emt 0:01:57]} 30. Rg2 {[%emt 0:01:04]} Rbf8 {[%emt 0:02:28]} 31. Rcg1 {[%emt 0:02:07]} Qf6 {[%emt 0:03:14]} 32. Rc1 {[%emt 0:00:49]} Ne8 {[%emt 0:03:03]} 33. g4 {[%emt 0:03:07]} Qh4 {[%emt 0:00:24]} 34. g5 {[%emt 0:02:11]} Ng4 {[%emt 0:00:17]} 35. Nxg4 {[%emt 0:01:18]} fxg4 {[%emt 0:00:06]} 36. Rh2 {[%emt 0:01:16]} g3 {[%emt 0:01:01]} 37. Qe1 {[%emt 0:00:09]} Bd4 {[%emt 0:01:07]} 38. Bxd4+ {[%emt 0:00:46]} cxd4 {[%emt 0:00:05]} 39. Nxe4 {[%emt 0:00:25]} Qxf4 {[%emt 0:01:21]} 40. Nxg3 {[%emt 0:00:41]} Rxg5 {[%emt 0:00:48]} 41. Bg4 {[%emt 0:00:19]} Bxg4 {[%emt 0:00:20]} 42. hxg4 {[%emt 0:00:04]} Rxg4 {[%emt 0:00:31]} 43. Rh3 {[%emt 0:00:59]} Rfg8 {[%emt 0:01:25]} 44. Nh5 {[%emt 0:00:05]} Qf5 {[%emt 0:01:04]} 45. Ng3 {[%emt 0:00:46]} Qf4 {[%emt 0:00:20]} 46. Nh5 {[%emt 0:00:37]} Qg5 {[%emt 0:00:11]} 47. Rd1 {[%emt 0:00:38]} Rh4 {[%emt 0:00:28]} 48. Qf1 {[%emt 0:00:33]} Qxh5 {[%emt 0:00:25]} 49. Rdd3 {[%emt 0:00:05]} Rxh3+ {[%emt 0:01:16]} 50. Rxh3 {[%emt 0:00:02]} Qg4 {[%emt 0:00:14]} 51. Kh2 {[%emt 0:00:11]} Qg5 {[%emt 0:00:46]} 52. Qf2 {[%emt 0:00:18]} Nf6 {[%emt 0:00:20]} 53. Kh1 {[%emt 0:00:44]} Qc1+ {[%emt 0:00:06]} 0-1

[Event "Paracin Open 2022"]
[Site "Paracin"]
[Date "2022.07.14"]
[Round "7.18"]
[White "Menezes, Christoph"]
[Black "Makridis, Dimitrios"]
[Result "1-0"]
[ECO "A17"]
[WhiteElo "2417"]
[BlackElo "2152"]
[Annotator "ChessBase"]
[PlyCount "95"]
[EventDate "2022.07.08"]
[EventCountry "SRB"]
[SourceTitle "playchess.com"]
[Source "ChessBase"]
[SourceQuality "1"]
[TimeControl "5400+30"]

1. c4 {[%emt 0:00:06]} e6 {[%emt 0:00:21]} 2. Nc3 {[%emt 0:00:22]} d5 {[%emt 0:00:23]} 3. e3 {[%emt 0:00:18]} Nf6 {[%emt 0:01:29]} 4. Nf3 {[%emt 0:00:22]} b6 {[%emt 0:07:28]} 5. b3 {[%emt 0:00:45]} Bb7 {[%emt 0:01:11]} 6. Bb2 {[%emt 0:00:26]} Nbd7 {[%emt 0:00:59]} 7. cxd5 {[%emt 0:02:37]} exd5 {[%emt 0:00:19]} 8. Rc1 {[%emt 0:00:45]} a6 {[%emt 0:00:52]} 9. d4 {[%emt 0:04:16]} Bd6 {[%emt 0:01:23]} 10. g3 {[%emt 0:00:29]} O-O {[%emt 0:01:12]} 11. Bg2 {[%emt 0:00:15]} Re8 {[%emt 0:00:43]} 12. O-O {[%emt 0:00:31]} b5 {[%emt 0:06:33]} 13. Ne2 {[%emt 0:07:30]} a5 {[%emt 0:07:12]} 14. Nf4 {[%emt 0:02:19]} a4 {[%emt 0:05:48]} 15. Nd3 {[%emt 0:01:01]} Ne4 {[%emt 0:01:58]} 16. Nfe5 {[%emt 0:07:18]} axb3 {[%emt 0:10:50]} 17. axb3 {[%emt 0:04:38]} Nxe5 {[%emt 0:08:41]} 18. dxe5 {[%emt 0:01:27]} Ba3 {[%emt 0:04:01]} 19. Bxa3 {[%emt 0:07:14]} Rxa3 {[%emt 0:00:11]} 20. f3 {[%emt 0:06:10]} Ng5 {[%emt 0:00:01]} 21. h4 {[%emt 0:02:04]} Ne6 {[%emt 0:00:01]} 22. f4 {[%emt 0:00:11]} Ba8 {[%emt 0:12:11]} 23. Nb4 {[%emt 0:15:25]} c5 {[%emt 0:06:35]} 24. Nxd5 {[%emt 0:00:40]} Ra2 {[%emt 0:00:28]} 25. e4 {[%emt 0:00:46]} Qa5 {[%emt 0:01:04]} 26. Rf2 {[%emt 0:10:57]} h6 {[%emt 0:09:32]} 27. Rxa2 {[%emt 0:04:31]} Qxa2 {[%emt 0:00:01]} 28. Kh2 {[%emt 0:00:28]} Qb2 {[%emt 0:05:48]} 29. Qc2 {[%emt 0:08:50]} Qxc2 {[%emt 0:01:36]} 30. Rxc2 {[%emt 0:00:03]} Rb8 {[%emt 0:01:29]} 31. f5 {[%emt 0:04:09]} Nd4 {[%emt 0:00:33]} 32. Rxc5 {[%emt 0:00:15]} Nxb3 {[%emt 0:00:11]} 33. Rc7 {[%emt 0:00:44]} Nd4 {[%emt 0:00:53]} 34. Nb4 {[%emt 0:01:00]} Kf8 {[%emt 0:01:11]} 35. g4 {[%emt 0:03:30]} Re8 {[%emt 0:01:05]} 36. Rc5 {[%emt 0:00:11]} Bb7 {[%emt 0:01:49]} 37. Kg3 {[%emt 0:01:15]} Ra8 {[%emt 0:00:51]} 38. Rc7 {[%emt 0:00:27]} Ra3+ {[%emt 0:00:39]} 39. Kh2 {[%emt 0:00:56]} Ba8 {[%emt 0:00:38]} 40. Nd5 {[%emt 0:00:34]} Kg8 {[%emt 0:00:53]} 41. Rd7 {[%emt 0:03:13]} Bc6 {[%emt 0:01:26]} 42. Rd8+ {[%emt 0:00:11]} Kh7 {[%emt 0:00:00]} 43. Ne7 {[%emt 0:00:10]} Ra4 {[%emt 0:00:22]} 44. e6 {[%emt 0:00:50]} fxe6 {[%emt 0:00:59]} 45. Ng6 {[%emt 0:00:12]} Ra8 {[%emt 0:00:20]} 46. Rxd4 {[%emt 0:00:07]} exf5 {[%emt 0:00:04]} 47. gxf5 {[%emt 0:00:17]} Rb8 {[%emt 0:00:13]} 48. Rb4 {[%emt 0:00:06]} 1-0

[Event "Paracin Open 2022"]
[Site "Paracin"]
[Date "2022.07.14"]
[Round "7.19"]
[White "Muthaiah AL"]
[Black "Jain Kashish Manoj"]
[Result "1-0"]
[ECO "D02"]
[WhiteElo "2401"]
[BlackElo "2147"]
[Annotator "ChessBase"]
[PlyCount "87"]
[EventDate "2022.07.08"]
[EventCountry "SRB"]
[SourceTitle "playchess.com"]
[Source "ChessBase"]
[SourceQuality "1"]
[TimeControl "5400+30"]

1. d4 {[%emt 0:00:20]} Nf6 {[%emt 0:00:06]} 2. Nf3 {[%emt 0:00:30]} g6 {[%emt 0:00:20]} 3. Nbd2 {[%emt 0:01:00]} d5 {[%emt 0:00:28]} 4. b4 {[%emt 0:00:55]} Bg7 {[%emt 0:00:09]} 5. e3 {[%emt 0:00:18]} O-O {[%emt 0:00:10]} 6. c4 {[%emt 0:04:01]} c6 {[%emt 0:05:22]} 7. Be2 {[%emt 0:05:34]} a5 {[%emt 0:14:34]} 8. b5 {[%emt 0:03:28]} cxb5 {[%emt 0:01:19]} 9. cxb5 {[%emt 0:01:33]} Bg4 {[%emt 0:18:25]} 10. Ba3 {[%emt 0:04:32]} Re8 {[%emt 0:04:35]} 11. Rc1 {[%emt 0:06:52]} Nbd7 {[%emt 0:03:17]} 12. O-O {[%emt 0:04:33]} e6 {[%emt 0:02:25]} 13. h3 {[%emt 0:25:57]} Bxf3 {[%emt 0:00:36]} 14. Bxf3 {[%emt 0:00:22]} Bf8 {[%emt 0:06:24]} 15. Bxf8 {[%emt 0:04:43]} Kxf8 {[%emt 0:01:18]} 16. e4 {[%emt 0:04:34]} Qb6 {[%emt 0:04:40]} 17. e5 {[%emt 0:05:38]} Ng8 {[%emt 0:01:05]} 18. Qa4 {[%emt 0:00:13]} Qd8 {[%emt 0:11:58]} 19. Be2 {[%emt 0:04:39]} Nb6 {[%emt 0:05:23]} 20. Qa3+ {[%emt 0:00:35]} Qe7 {[%emt 0:01:54]} 21. Qc5 {[%emt 0:03:53]} Nd7 {[%emt 0:00:37]} 22. Qxe7+ {[%emt 0:01:59]} Kxe7 {[%emt 0:00:34]} 23. Rc7 {[%emt 0:03:58]} b6 {[%emt 0:00:03]} 24. Rfc1 {[%emt 0:00:40]} Reb8 {[%emt 0:00:51]} 25. f4 {[%emt 0:03:07]} Ke8 {[%emt 0:06:46]} 26. Nf3 {[%emt 0:01:16]} Ne7 {[%emt 0:00:18]} 27. g4 {[%emt 0:01:37]} Rc8 {[%emt 0:00:37]} 28. Bd3 {[%emt 0:00:30]} h6 {[%emt 0:07:58]} 29. Kf2 {[%emt 0:00:42]} Kd8 {[%emt 0:00:39]} 30. Rxc8+ {[%emt 0:00:16]} Rxc8 {[%emt 0:00:01]} 31. Rxc8+ {[%emt 0:00:12]} Kxc8 {[%emt 0:00:07]} 32. f5 {[%emt 0:04:34]} Kd8 {[%emt 0:02:53]} 33. f6 {[%emt 0:01:26]} Nc8 {[%emt 0:00:31]} 34. g5 {[%emt 0:00:23]} hxg5 {[%emt 0:00:33]} 35. Nxg5 {[%emt 0:00:12]} Ke8 {[%emt 0:00:04]} 36. Be2 {[%emt 0:02:10]} Kf8 {[%emt 0:00:56]} 37. Bg4 {[%emt 0:00:14]} Ke8 {[%emt 0:00:33]} 38. a4 {[%emt 0:00:46]} Na7 {[%emt 0:00:27]} 39. Kg3 {[%emt 0:00:15]} Nf8 {[%emt 0:00:21]} 40. Kf4 {[%emt 0:00:20]} Nd7 {[%emt 0:00:08]} 41. h4 {[%emt 0:00:21]} Nf8 {[%emt 0:00:51]} 42. h5 {[%emt 0:00:30]} gxh5 {[%emt 0:00:37]} 43. Bxh5 {[%emt 0:00:01]} Kd7 {[%emt 0:00:35]} 44. Nxf7 {[%emt 0:00:35]} 1-0

[Event "Paracin Open 2022"]
[Site "Paracin"]
[Date "2022.07.14"]
[Round "7.20"]
[White "Tsaknakis, Zisis"]
[Black "Damjanovic, Vuk"]
[Result "1-0"]
[ECO "B51"]
[WhiteElo "2266"]
[BlackElo "2393"]
[Annotator "ChessBase"]
[PlyCount "131"]
[EventDate "2022.07.08"]
[EventCountry "SRB"]
[SourceTitle "playchess.com"]
[Source "ChessBase"]
[SourceQuality "1"]
[TimeControl "5400+30"]

1. e4 {[%emt 0:00:02]} c5 {[%emt 0:06:16]} 2. Nf3 {[%emt 0:00:09]} Nc6 {[%emt 0:00:26]} 3. Bb5 {[%emt 0:00:32]} d6 {[%emt 0:04:36]} 4. O-O {[%emt 0:00:03]} Bd7 {[%emt 0:00:22]} 5. Re1 {[%emt 0:02:33]} a6 {[%emt 0:03:28]} 6. Bxc6 {[%emt 0:00:24]} Bxc6 {[%emt 0:01:43]} 7. d4 {[%emt 0:00:01]} cxd4 {[%emt 0:00:30]} 8. Nxd4 {[%emt 0:00:06]} Bd7 {[%emt 0:06:56]} 9. c4 {[%emt 0:04:43]} e6 {[%emt 0:16:03]} 10. b3 {[%emt 0:03:21]} Be7 {[%emt 0:04:00]} 11. Nc3 {[%emt 0:00:56]} Nf6 {[%emt 0:01:01]} 12. Qd3 {[%emt 0:02:19]} O-O {[%emt 0:02:55]} 13. h3 {[%emt 0:06:09]} Qa5 {[%emt 0:07:23]} 14. Bd2 {[%emt 0:00:25]} Qh5 {[%emt 0:02:08]} 15. a4 {[%emt 0:01:25]} Kh8 {[%emt 0:04:21]} 16. f4 {[%emt 0:28:09]} Qc5 {[%emt 0:02:15]} 17. e5 {[%emt 0:06:05]} Ne8 {[%emt 0:14:30]} 18. Ne4 {[%emt 0:01:26]} Qc7 {[%emt 0:00:13]} 19. Nf3 {[%emt 0:08:00]} Bc6 {[%emt 0:05:28]} 20. Neg5 {[%emt 0:04:30]} g6 {[%emt 0:00:28]} 21. exd6 {[%emt 0:03:05]} Qxd6 {[%emt 0:01:33]} 22. Qc3+ {[%emt 0:03:47]} Kg8 {[%emt 0:02:47]} 23. Ne5 {[%emt 0:03:31]} h6 {[%emt 0:03:32]} 24. Nxc6 {[%emt 0:10:15]} Qxc6 {[%emt 0:01:02]} 25. Nf3 {[%emt 0:01:14]} Ng7 {[%emt 0:04:48]} 26. Ne5 {[%emt 0:00:01]} Qc5+ {[%emt 0:00:36]} 27. Be3 {[%emt 0:02:39]} Qc7 {[%emt 0:00:53]} 28. Rad1 {[%emt 0:04:05]} Rfd8 {[%emt 0:00:49]} 29. c5 {[%emt 0:00:36]} h5 {[%emt 0:01:41]} 30. Bf2 {[%emt 0:00:55]} Rd5 {[%emt 0:01:51]} 31. Rxd5 {[%emt 0:01:09]} exd5 {[%emt 0:00:01]} 32. b4 {[%emt 0:00:57]} Rd8 {[%emt 0:00:36]} 33. c6 {[%emt 0:00:20]} Bf6 {[%emt 0:00:39]} 34. b5 {[%emt 0:00:47]} axb5 {[%emt 0:00:07]} 35. axb5 {[%emt 0:00:04]} bxc6 {[%emt 0:00:16]} 36. b6 {[%emt 0:01:41]} Qd6 {[%emt 0:00:56]} 37. Rc1 {[%emt 0:00:56]} d4 {[%emt 0:00:58]} 38. Qxc6 {[%emt 0:00:21]} Bxe5 {[%emt 0:00:01]} 39. fxe5 {[%emt 0:00:09]} Qxe5 {[%emt 0:00:37]} 40. b7 {[%emt 0:00:33]} Ne6 {[%emt 0:00:40]} 41. Re1 {[%emt 0:00:46]} Qf4 {[%emt 0:01:03]} 42. Re4 {[%emt 0:01:26]} Qf5 {[%emt 0:00:31]} 43. Bxd4 {[%emt 0:00:51]} Kh7 {[%emt 0:00:21]} 44. Rxe6 {[%emt 0:00:30]} Qb1+ {[%emt 0:00:34]} 45. Kh2 {[%emt 0:00:12]} Rxd4 {[%emt 0:00:25]} 46. Qc7 {[%emt 0:00:17]} Rd1 {[%emt 0:00:33]} 47. Qxf7+ {[%emt 0:00:11]} Kh6 {[%emt 0:00:00]} 48. Qxg6+ {[%emt 0:00:18]} Qxg6 {[%emt 0:00:02]} 49. Rxg6+ {[%emt 0:00:06]} Kxg6 {[%emt 0:00:01]} 50. b8=Q {[%emt 0:00:07]} Rd7 {[%emt 0:00:03]} 51. Qe8+ {[%emt 0:00:39]} Rf7 {[%emt 0:00:01]} 52. Kg3 {[%emt 0:00:19]} Kg7 {[%emt 0:00:01]} 53. Kh4 {[%emt 0:00:21]} Rf5 {[%emt 0:00:01]} 54. Qd7+ {[%emt 0:00:18]} Kg6 {[%emt 0:00:00]} 55. Qxf5+ {[%emt 0:00:10]} Kxf5 {[%emt 0:00:01]} 56. Kxh5 {[%emt 0:00:07]} Kf6 {[%emt 0:00:00]} 57. g4 {[%emt 0:00:07]} Kg7 {[%emt 0:00:01]} 58. Kg5 {[%emt 0:00:06]} Kh7 {[%emt 0:00:01]} 59. h4 {[%emt 0:00:04]} Kg7 {[%emt 0:00:00]} 60. h5 {[%emt 0:00:05]} Kh7 {[%emt 0:00:01]} 61. Kf6 {[%emt 0:01:07]} Kh6 {[%emt 0:00:05]} 62. g5+ {[%emt 0:00:11]} Kh7 {[%emt 0:00:02]} 63. Kf7 {[%emt 0:00:10]} Kh8 {[%emt 0:00:01]} 64. h6 {[%emt 0:00:27]} Kh7 {[%emt 0:00:01]} 65. g6+ {[%emt 0:00:07]} Kxh6 {[%emt 0:00:09]} 66. g7 {[%emt 0:00:04]} 1-0

[Event "Paracin Open 2022"]
[Site "Paracin"]
[Date "2022.07.15"]
[Round "8.1"]
[White "Praggnanandhaa R"]
[Black "Arjun Kalyan"]
[Result "1-0"]
[ECO "E48"]
[WhiteElo "2648"]
[BlackElo "2499"]
[Annotator "ChessBase"]
[PlyCount "49"]
[EventDate "2022.07.08"]
[EventCountry "SRB"]
[SourceTitle "playchess.com"]
[Source "ChessBase"]
[SourceQuality "1"]
[TimeControl "5400+30"]

1. d4 {[%emt 0:00:51]} Nf6 {[%emt 0:00:04]} 2. c4 {[%emt 0:00:44]} e6 {[%emt 0:00:05]} 3. Nc3 {[%emt 0:00:05]} Bb4 {[%emt 0:00:05]} 4. e3 {[%emt 0:00:04]} O-O {[%emt 0:00:17]} 5. Bd3 {[%emt 0:00:05]} d5 {[%emt 0:00:05]} 6. cxd5 {[%emt 0:00:14]} exd5 {[%emt 0:00:09]} 7. Nge2 {[%emt 0:00:05]} Re8 {[%emt 0:02:33]} 8. Bd2 {[%emt 0:00:30]} c6 {[%emt 0:01:25]} 9. O-O {[%emt 0:02:51]} Bf8 {[%emt 0:10:11]} 10. Qc2 {[%emt 0:10:18]} a5 {[%emt 0:09:06]} 11. a3 {[%emt 0:02:48]} Na6 {[%emt 0:00:50]} 12. Rad1 {[%emt 0:10:42]} g6 {[%emt 0:06:36]} 13. Kh1 {[%emt 0:11:33]} Bd7 {[%emt 0:10:58]} 14. f3 {[%emt 0:07:08]} b5 {[%emt 0:21:48]} 15. e4 {[%emt 0:07:45]} b4 {[%emt 0:33:48]} 16. Na4 {[%emt 0:04:00]} bxa3 {[%emt 0:00:00]} 17. bxa3 {[%emt 0:08:27]} c5 {[%emt 0:00:00]} 18. Nxc5 {[%emt 0:02:16]} Nxc5 {[%emt 0:00:00]} 19. dxc5 {[%emt 0:00:06]} dxe4 {[%emt 0:00:00]} 20. Bxe4 {[%emt 0:04:15]} Nxe4 {[%emt 0:00:00]} 21. fxe4 {[%emt 0:00:05]} Qe7 {[%emt 0:00:00]} 22. Bg5 {[%emt 0:07:55]} Qxg5 {[%emt 0:00:00]} 23. Rxd7 {[%emt 0:00:29]} Qxc5 {[%emt 0:00:00]} 24. Qa2 {[%emt 0:02:58]} Be7 {[%emt 0:00:00]} 25. Rxf7 {[%emt 0:01:14]} 1-0